[Event "Live Chess"]
[Site "Chess.com"]
[Date "2023.05.21"]
[Round "-"]
[White "LiamBellwood"]
[Black "worldchessleaguelive"]
[Result "1-0"]
[WhiteElo "2009"]
[BlackElo "1371"]
[TimeControl "300"]
[EndTime "20:08:39 PDT"]
[Termination "LiamBellwood won by resignation"]

1. d4 {[%clk 0:04:59.2]} 1... Nf6 {[%clk 0:04:56.2]} 2. Nc3 {[%clk 0:04:58.8]}
2... d5 {[%clk 0:04:54.8]} 3. Bf4 {[%clk 0:04:58.4]} 3... c6 {[%clk 0:04:53.4]}
4. e3 {[%clk 0:04:57.6]} 4... e6 {[%clk 0:04:52.5]} 5. Nf3 {[%clk 0:04:55.2]}
5... Be7 {[%clk 0:04:51.7]} 6. Ne5 {[%clk 0:04:54.5]} 6... Nbd7 {[%clk
0:04:50.3]} 7. Bd3 {[%clk 0:04:52.5]} 7... Nxe5 {[%clk 0:04:49.4]} 8. Bxe5
{[%clk 0:04:51.1]} 8... Nd7 {[%clk 0:04:48.3]} 9. Bg3 {[%clk 0:04:45.9]} 9... c5
{[%clk 0:04:45]} 10. Qg4 {[%clk 0:04:37.3]} 10... O-O {[%clk 0:04:41.2]} 11. O-O
{[%clk 0:04:24.1]} 11... c4 {[%clk 0:04:39.6]} 12. Be2 {[%clk 0:04:22]} 12...
Nf6 {[%clk 0:04:38.6]} 13. Qf3 {[%clk 0:04:08.6]} 13... Bd7 {[%clk 0:04:32.4]}
14. a4 {[%clk 0:03:59.2]} 14... a6 {[%clk 0:04:30.7]} 15. e4 {[%clk 0:03:50.9]}
15... b5 {[%clk 0:04:28.5]} 16. exd5 {[%clk 0:03:46.9]} 16... Nxd5 {[%clk
0:04:16]} 17. Nxd5 {[%clk 0:03:42.8]} 17... exd5 {[%clk 0:04:14.7]} 18. Qxd5
{[%clk 0:03:39.6]} 18... bxa4 {[%clk 0:04:01.1]} 19. Bxc4 {[%clk 0:03:35.2]}
19... Bb5 {[%clk 0:03:46.4]} 20. Qxd8 {[%clk 0:03:25.1]} 20... Rfxd8 {[%clk
0:03:42.2]} 21. Bxb5 {[%clk 0:03:25]} 21... axb5 {[%clk 0:03:38.9]} 22. c3
{[%clk 0:03:24.7]} 22... b4 {[%clk 0:03:34.6]} 23. Rfe1 {[%clk 0:03:24]} 23...
Bf6 {[%clk 0:03:27.1]} 24. Be5 {[%clk 0:03:03.2]} 24... Bg5 {[%clk 0:03:11.9]}
25. cxb4 {[%clk 0:02:54.1]} 25... Bd2 {[%clk 0:03:07.9]} 26. Red1 {[%clk
0:02:45.3]} 26... Bxb4 {[%clk 0:03:06.6]} 27. d5 {[%clk 0:02:39.3]} 27... Ra5
{[%clk 0:03:02.2]} 28. Bc7 {[%clk 0:02:37.3]} 28... Rdxd5 {[%clk 0:02:42.3]} 29.
Bxa5 {[%clk 0:02:30.6]} 29... Rxa5 {[%clk 0:02:40.6]} 30. Rd8+ {[%clk
0:02:28.9]} 30... Bf8 {[%clk 0:02:39.2]} 31. Rc1 {[%clk 0:02:23]} 31... Re5
{[%clk 0:02:07.9]} 32. g3 {[%clk 0:02:18.7]} 32... f6 {[%clk 0:01:41.8]} 33.
Rcc8 {[%clk 0:02:15.6]} 33... Re1+ {[%clk 0:01:40.2]} 34. Kg2 {[%clk 0:02:14.7]}
1-0

[Event "Live Chess"]
[Site "Chess.com"]
[Date "2023.05.21"]
[Round "-"]
[White "Theodoritzky"]
[Black "chessfiction"]
[Result "1/2-1/2"]
[WhiteElo "2461"]
[BlackElo "2346"]
[TimeControl "300"]
[EndTime "20:09:58 PDT"]
[Termination "Game drawn by agreement"]

1. d4 {[%clk 0:04:44.4]} 1... d5 {[%clk 0:04:55.5]} 2. c4 {[%clk 0:04:42]} 2...
e5 {[%clk 0:04:53.7]} 3. e3 {[%clk 0:04:40.3]} 3... e4 {[%clk 0:04:51.7]} 4.
cxd5 {[%clk 0:04:36.3]} 4... f5 {[%clk 0:04:51.3]} 5. Nc3 {[%clk 0:04:28.8]}
5... Nf6 {[%clk 0:04:51.2]} 6. a3 {[%clk 0:04:23.5]} 6... Bd6 {[%clk 0:04:51.1]}
7. Qb3 {[%clk 0:04:21.8]} 7... O-O {[%clk 0:04:49.8]} 8. Nh3 {[%clk 0:04:16.9]}
8... Kh8 {[%clk 0:04:33.5]} 9. Be2 {[%clk 0:04:04.2]} 9... Qe8 {[%clk
0:04:30.8]} 10. Bd2 {[%clk 0:04:03.3]} 10... Qg6 {[%clk 0:04:29.6]} 11. O-O
{[%clk 0:03:59.4]} 11... f4 {[%clk 0:04:27.3]} 12. Nxf4 {[%clk 0:03:56.5]} 12...
Bxf4 {[%clk 0:04:26.4]} 13. exf4 {[%clk 0:03:56]} 13... Bh3 {[%clk 0:04:25.8]}
14. g3 {[%clk 0:03:42.3]} 14... Bxf1 {[%clk 0:04:24.9]} 15. Bxf1 {[%clk
0:03:41.3]} 15... Nbd7 {[%clk 0:04:24]} 16. Bg2 {[%clk 0:03:37.8]} 16... h5
{[%clk 0:04:18.3]} 17. Qxb7 {[%clk 0:03:09.6]} 17... Rab8 {[%clk 0:04:16.2]} 18.
Qxc7 {[%clk 0:03:05.3]} 18... Rxb2 {[%clk 0:04:13.3]} 19. Be3 {[%clk 0:03:02.7]}
19... h4 {[%clk 0:04:04.8]} 20. Qxa7 {[%clk 0:02:53.8]} 20... hxg3 {[%clk
0:03:53.6]} 21. hxg3 {[%clk 0:02:53.7]} 21... Ng4 {[%clk 0:03:50.1]} 22. Qxd7
{[%clk 0:02:50.5]} 22... Rf5 {[%clk 0:03:38]} 23. Re1 {[%clk 0:02:30.8]} 23...
Qh5 {[%clk 0:03:27.8]} 24. d6 {[%clk 0:02:21]} 24... Rc2 {[%clk 0:03:17.9]} 25.
Nd5 {[%clk 0:02:11.6]} 25... Rxd5 {[%clk 0:02:50.3]} 26. Qd8+ {[%clk 0:02:08.6]}
26... Kh7 {[%clk 0:02:47.4]} 27. Bxe4+ {[%clk 0:02:07.8]} 27... g6 {[%clk
0:02:38.1]} 28. Bxc2 {[%clk 0:02:04.8]} 28... Qh2+ {[%clk 0:02:35.4]} 29. Kf1
{[%clk 0:02:04.1]} 29... Qh1+ {[%clk 0:02:15.9]} 30. Ke2 {[%clk 0:01:56.3]}
30... Qh5 {[%clk 0:02:15.3]} 1/2-1/2

[Event "Live Chess"]
[Site "Chess.com"]
[Date "2023.05.21"]
[Round "-"]
[White "Biranidun"]
[Black "smoggyrabbit"]
[Result "1-0"]
[WhiteElo "2507"]
[BlackElo "1745"]
[TimeControl "300"]
[EndTime "20:10:00 PDT"]
[Termination "Biranidun won by checkmate"]

1. e4 {[%clk 0:04:59.1]} 1... e6 {[%clk 0:04:59.1]} 2. d4 {[%clk 0:04:58.2]}
2... d5 {[%clk 0:04:58.2]} 3. e5 {[%clk 0:04:57.9]} 3... c5 {[%clk 0:04:56.6]}
4. c3 {[%clk 0:04:57.6]} 4... Nc6 {[%clk 0:04:55.7]} 5. Nf3 {[%clk 0:04:57.2]}
5... Bd7 {[%clk 0:04:54.5]} 6. Bd3 {[%clk 0:04:55.1]} 6... Rc8 {[%clk
0:04:53.2]} 7. a3 {[%clk 0:04:46.8]} 7... cxd4 {[%clk 0:04:46.1]} 8. cxd4 {[%clk
0:04:46.7]} 8... Na5 {[%clk 0:04:38.6]} 9. Nc3 {[%clk 0:04:42.4]} 9... Ne7
{[%clk 0:04:33.7]} 10. O-O {[%clk 0:04:41.6]} 10... Ng6 {[%clk 0:04:29.7]} 11.
g3 {[%clk 0:04:35.4]} 11... Be7 {[%clk 0:04:25.1]} 12. h4 {[%clk 0:04:34.8]}
12... Qb6 {[%clk 0:03:48.5]} 13. h5 {[%clk 0:04:33.2]} 13... Nf8 {[%clk
0:03:46.9]} 14. h6 {[%clk 0:04:32.7]} 14... g6 {[%clk 0:03:43.1]} 15. Ne2 {[%clk
0:04:30.9]} 15... Nb3 {[%clk 0:03:31.8]} 16. Rb1 {[%clk 0:04:29.9]} 16... Bc6
{[%clk 0:03:22.6]} 17. Be3 {[%clk 0:04:28.2]} 17... Nd7 {[%clk 0:03:20.5]} 18.
Nh2 {[%clk 0:04:25.6]} 18... O-O {[%clk 0:03:18.5]} 19. Ng4 {[%clk 0:04:25]}
19... Na5 {[%clk 0:03:12.9]} 20. b3 {[%clk 0:04:19]} 20... Bb5 {[%clk
0:03:07.4]} 21. a4 {[%clk 0:04:12.6]} 21... Bxd3 {[%clk 0:03:01.8]} 22. Qxd3
{[%clk 0:04:12.5]} 22... Rc7 {[%clk 0:02:57.5]} 23. Qd2 {[%clk 0:04:08.7]} 23...
Rfc8 {[%clk 0:02:48.1]} 24. Bg5 {[%clk 0:04:07.6]} 24... Rc2 {[%clk 0:02:22.8]}
25. Qf4 {[%clk 0:04:06.1]} 25... Bxg5 {[%clk 0:02:16.7]} 26. Qxg5 {[%clk
0:04:06]} 26... Rxe2 {[%clk 0:02:09.8]} 27. Nf6+ {[%clk 0:04:05.1]} 27... Kh8
{[%clk 0:02:00.2]} 28. Nxd7 {[%clk 0:04:03.8]} 28... Qd8 {[%clk 0:01:54.1]} 29.
Qf4 {[%clk 0:04:01.3]} 29... Rc7 {[%clk 0:01:15.3]} 30. Nf6 {[%clk 0:03:52.6]}
30... Rc3 {[%clk 0:00:51.1]} 31. Rfc1 {[%clk 0:03:50]} 31... Rec2 {[%clk
0:00:46]} 32. Rxc2 {[%clk 0:03:49]} 32... Rxc2 {[%clk 0:00:45]} 33. Ng4 {[%clk
0:03:43.9]} 33... Rc3 {[%clk 0:00:41.8]} 34. Qxf7 {[%clk 0:03:41.1]} 34... Rxb3
{[%clk 0:00:34.6]} 35. Qg7# {[%clk 0:03:40.2]} 1-0

[Event "Live Chess"]
[Site "Chess.com"]
[Date "2023.05.21"]
[Round "-"]
[White "LutherSullivan"]
[Black "ViktorTheCoolBoy"]
[Result "0-1"]
[WhiteElo "2197"]
[BlackElo "2501"]
[TimeControl "300"]
[EndTime "20:10:47 PDT"]
[Termination "ViktorTheCoolBoy won on time"]

1. e4 {[%clk 0:04:57.8]} 1... e5 {[%clk 0:04:55.5]} 2. Nf3 {[%clk 0:04:57.1]}
2... Nc6 {[%clk 0:04:54.3]} 3. Bc4 {[%clk 0:04:55.6]} 3... Nf6 {[%clk
0:04:52.9]} 4. Ng5 {[%clk 0:04:52.6]} 4... d5 {[%clk 0:04:51.8]} 5. exd5 {[%clk
0:04:51.2]} 5... Na5 {[%clk 0:04:51.2]} 6. Bb5+ {[%clk 0:04:50.5]} 6... Bd7
{[%clk 0:04:50.5]} 7. Qe2 {[%clk 0:04:43.1]} 7... Bd6 {[%clk 0:04:48.3]} 8. Nc3
{[%clk 0:04:28]} 8... O-O {[%clk 0:04:41]} 9. Bxd7 {[%clk 0:04:03.6]} 9... Qxd7
{[%clk 0:04:38.3]} 10. d3 {[%clk 0:04:02.9]} 10... c6 {[%clk 0:04:34]} 11. Nge4
{[%clk 0:03:53.6]} 11... Nxd5 {[%clk 0:04:29.6]} 12. Nxd6 {[%clk 0:03:43.6]}
12... Nxc3 {[%clk 0:04:24.7]} 13. bxc3 {[%clk 0:03:41.1]} 13... Qxd6 {[%clk
0:04:23]} 14. O-O {[%clk 0:03:31.6]} 14... c5 {[%clk 0:04:22]} 15. f4 {[%clk
0:02:59.8]} 15... Rae8 {[%clk 0:04:18.1]} 16. fxe5 {[%clk 0:02:39.9]} 16... Qxe5
{[%clk 0:04:16.8]} 17. Qxe5 {[%clk 0:02:18.5]} 17... Rxe5 {[%clk 0:04:16.7]} 18.
Bf4 {[%clk 0:02:17]} 18... Re2 {[%clk 0:04:15]} 19. Rf2 {[%clk 0:02:16.3]} 19...
Rfe8 {[%clk 0:04:13.2]} 20. Kf1 {[%clk 0:01:56.4]} 20... R2e6 {[%clk 0:04:09.1]}
21. Bd2 {[%clk 0:01:51.7]} 21... Nc6 {[%clk 0:04:07.2]} 22. Re1 {[%clk
0:01:50.9]} 22... Rxe1+ {[%clk 0:04:05.3]} 23. Bxe1 {[%clk 0:01:50.4]} 23... f6
{[%clk 0:04:03.6]} 24. Re2 {[%clk 0:01:49.1]} 24... Rd8 {[%clk 0:03:59.9]} 25.
Bf2 {[%clk 0:01:44.1]} 25... b6 {[%clk 0:03:50.2]} 26. Re6 {[%clk 0:01:42.2]}
26... Rc8 {[%clk 0:03:48.7]} 27. Rd6 {[%clk 0:01:32]} 27... Rc7 {[%clk
0:03:43.5]} 28. Bg3 {[%clk 0:01:30.7]} 28... Kf7 {[%clk 0:03:39.9]} 29. Rxf6+
{[%clk 0:01:28.3]} 29... gxf6 {[%clk 0:03:38.5]} 30. Bxc7 {[%clk 0:01:27.9]}
30... Ke6 {[%clk 0:03:37.4]} 31. Kf2 {[%clk 0:01:22]} 31... c4 {[%clk
0:03:36.7]} 32. Ke3 {[%clk 0:01:17.2]} 32... Kd5 {[%clk 0:03:35.4]} 33. h3
{[%clk 0:01:08.8]} 33... b5 {[%clk 0:03:32.9]} 34. Bg3 {[%clk 0:01:05.6]} 34...
b4 {[%clk 0:03:31.6]} 35. Be1 {[%clk 0:00:58.2]} 35... a5 {[%clk 0:03:28.6]} 36.
cxb4 {[%clk 0:00:49.5]} 36... axb4 {[%clk 0:03:27.6]} 37. c3 {[%clk 0:00:47.4]}
37... cxd3 {[%clk 0:03:13.9]} 38. cxb4 {[%clk 0:00:39.8]} 38... Kc4 {[%clk
0:03:12.3]} 39. a4 {[%clk 0:00:34.4]} 39... Nd4 {[%clk 0:03:10]} 40. Bd2 {[%clk
0:00:28]} 40... Nc2+ {[%clk 0:03:07]} 41. Ke4 {[%clk 0:00:24.7]} 41... f5+
{[%clk 0:03:04.6]} 42. Kxf5 {[%clk 0:00:23.3]} 42... Nxb4 {[%clk 0:03:03.7]} 43.
Ke4 {[%clk 0:00:21.4]} 43... Na6 {[%clk 0:03:01]} 44. g4 {[%clk 0:00:18.4]}
44... Nc5+ {[%clk 0:02:58.7]} 45. Ke3 {[%clk 0:00:17]} 45... Nxa4 {[%clk
0:02:57.6]} 46. g5 {[%clk 0:00:16.2]} 46... Nc5 {[%clk 0:02:54.7]} 47. h4 {[%clk
0:00:15.4]} 47... Ne6 {[%clk 0:02:53.9]} 48. Ke4 {[%clk 0:00:13.9]} 48... Ng7
{[%clk 0:02:49]} 49. Ke5 {[%clk 0:00:10.5]} 49... Kb3 {[%clk 0:02:47]} 50. Kf6
{[%clk 0:00:08.9]} 50... Nh5+ {[%clk 0:02:46.1]} 51. Kf7 {[%clk 0:00:08.2]}
51... Kc2 {[%clk 0:02:45.4]} 52. Ba5 {[%clk 0:00:06.9]} 52... Nf4 {[%clk
0:02:42.1]} 53. Kg8 {[%clk 0:00:05.4]} 53... Ng2 {[%clk 0:02:41.1]} 54. Kxh7
{[%clk 0:00:04.2]} 54... Nxh4 {[%clk 0:02:39.9]} 55. g6 {[%clk 0:00:03.9]} 55...
Nf5 {[%clk 0:02:38]} 56. g7 {[%clk 0:00:02.7]} 56... Nxg7 {[%clk 0:02:37.6]} 57.
Kxg7 {[%clk 0:00:02.4]} 57... Kb3 {[%clk 0:02:36.9]} 58. Be1 {[%clk 0:00:00.7]}
58... Ka4 {[%clk 0:02:35.6]} 0-1

[Event "Live Chess"]
[Site "Chess.com"]
[Date "2023.05.21"]
[Round "-"]
[White "RockTroll"]
[Black "grillage"]
[Result "1-0"]
[WhiteElo "2263"]
[BlackElo "1807"]
[TimeControl "300"]
[EndTime "20:11:29 PDT"]
[Termination "RockTroll won by resignation"]

1. Nf3 {[%clk 0:04:58.1]} 1... Nf6 {[%clk 0:04:58.3]} 2. g3 {[%clk 0:04:57.4]}
2... b5 {[%clk 0:04:53.1]} 3. Bg2 {[%clk 0:04:56.6]} 3... Bb7 {[%clk 0:04:52.2]}
4. O-O {[%clk 0:04:55.4]} 4... e6 {[%clk 0:04:50.1]} 5. d3 {[%clk 0:04:55]} 5...
Be7 {[%clk 0:04:48.5]} 6. a4 {[%clk 0:04:53.6]} 6... b4 {[%clk 0:04:46.4]} 7.
Nbd2 {[%clk 0:04:51.4]} 7... O-O {[%clk 0:04:43.3]} 8. e4 {[%clk 0:04:51]} 8...
d6 {[%clk 0:04:40.2]} 9. Re1 {[%clk 0:04:50.2]} 9... c5 {[%clk 0:04:38.6]} 10.
Nc4 {[%clk 0:04:48.1]} 10... d5 {[%clk 0:04:26]} 11. Ncd2 {[%clk 0:04:41.7]}
11... dxe4 {[%clk 0:04:19]} 12. dxe4 {[%clk 0:04:39.8]} 12... Nbd7 {[%clk
0:04:13.4]} 13. e5 {[%clk 0:04:24.8]} 13... Nd5 {[%clk 0:04:11.1]} 14. Nc4
{[%clk 0:04:23.2]} 14... Qc7 {[%clk 0:04:08.4]} 15. h4 {[%clk 0:04:11.6]} 15...
Ba6 {[%clk 0:04:04]} 16. Bf1 {[%clk 0:04:06.4]} 16... Bxc4 {[%clk 0:04:01]} 17.
Bxc4 {[%clk 0:04:04.8]} 17... N7b6 {[%clk 0:03:58.6]} 18. Bd3 {[%clk 0:03:59.2]}
18... Rad8 {[%clk 0:03:52.5]} 19. Bg5 {[%clk 0:03:43.3]} 19... Bxg5 {[%clk
0:03:47.6]} 20. Nxg5 {[%clk 0:03:41.9]} 20... g6 {[%clk 0:03:36.5]} 21. Qg4
{[%clk 0:03:37.5]} 21... c4 {[%clk 0:03:29.4]} 22. Be4 {[%clk 0:03:35.5]} 22...
Ne7 {[%clk 0:03:08.4]} 23. h5 {[%clk 0:03:30.8]} 23... Nf5 {[%clk 0:03:04.3]}
24. Kg2 {[%clk 0:03:22.3]} 24... Rd4 {[%clk 0:03:02.7]} 25. c3 {[%clk 0:03:16]}
25... Rd2 {[%clk 0:02:59.5]} 26. Rh1 {[%clk 0:03:12.9]} 26... Qc5 {[%clk
0:02:54.2]} 27. Qf3 {[%clk 0:02:56]} 27... Rxb2 {[%clk 0:02:46]} 28. Nxh7 {[%clk
0:02:48.8]} 28... Kxh7 {[%clk 0:02:30.9]} 29. hxg6+ {[%clk 0:02:46.8]} 29... Kg8
{[%clk 0:02:24.5]} 30. Rh8+ {[%clk 0:02:33.6]} 30... Kg7 {[%clk 0:01:42.9]} 31.
Rh7+ {[%clk 0:02:32.6]} 31... Kg8 {[%clk 0:01:42.2]} 32. Bxf5 {[%clk 0:02:20.1]}
32... fxg6 {[%clk 0:01:35.4]} 33. Bxe6+ {[%clk 0:02:14.9]} 33... Kxh7 {[%clk
0:01:33.2]} 34. Rh1+ {[%clk 0:02:10.4]} 34... Kg7 {[%clk 0:01:30.6]} 35. Qb7+
{[%clk 0:02:05.5]} 1-0

[Event "Live Chess"]
[Site "Chess.com"]
[Date "2023.05.21"]
[Round "-"]
[White "ClassyChameleon"]
[Black "raminguy"]
[Result "0-1"]
[WhiteElo "1077"]
[BlackElo "1954"]
[TimeControl "300"]
[EndTime "20:11:44 PDT"]
[Termination "raminguy won by checkmate"]

1. e4 {[%clk 0:04:58.4]} 1... e5 {[%clk 0:04:58]} 2. c4 {[%clk 0:04:56.9]} 2...
Nc6 {[%clk 0:04:56.8]} 3. Nc3 {[%clk 0:04:52.3]} 3... Nf6 {[%clk 0:04:53.9]} 4.
f3 {[%clk 0:04:50.5]} 4... Bc5 {[%clk 0:04:50.4]} 5. Nge2 {[%clk 0:04:46.1]}
5... O-O {[%clk 0:04:49.3]} 6. Ng3 {[%clk 0:04:45.1]} 6... d6 {[%clk 0:04:47.5]}
7. Be2 {[%clk 0:04:41.2]} 7... Nd4 {[%clk 0:04:45.1]} 8. d3 {[%clk 0:04:38.6]}
8... a6 {[%clk 0:04:42.7]} 9. Be3 {[%clk 0:04:36.5]} 9... Nxf3+ {[%clk
0:04:35.9]} 10. Bxf3 {[%clk 0:04:29.1]} 10... Bxe3 {[%clk 0:04:34.8]} 11. Nf5
{[%clk 0:04:25.9]} 11... Bxf5 {[%clk 0:04:32.8]} 12. exf5 {[%clk 0:04:25]} 12...
c6 {[%clk 0:04:27.5]} 13. g4 {[%clk 0:04:06.9]} 13... Rc8 {[%clk 0:04:18.9]} 14.
Ke2 {[%clk 0:04:04.8]} 14... Bf4 {[%clk 0:04:15.7]} 15. Qb3 {[%clk 0:03:57]}
15... b5 {[%clk 0:04:13]} 16. Nd1 {[%clk 0:03:33.3]} 16... Re8 {[%clk
0:04:10.9]} 17. Nf2 {[%clk 0:03:26.7]} 17... d5 {[%clk 0:04:08.6]} 18. cxb5
{[%clk 0:03:20.7]} 18... axb5 {[%clk 0:04:06.1]} 19. Rac1 {[%clk 0:03:15.7]}
19... e4 {[%clk 0:03:57.8]} 20. dxe4 {[%clk 0:03:05.9]} 20... Bxc1 {[%clk
0:03:51.8]} 21. Rxc1 {[%clk 0:03:04.1]} 21... dxe4 {[%clk 0:03:50.7]} 22. Nxe4
{[%clk 0:03:02.1]} 22... Nxe4 {[%clk 0:03:49.4]} 23. Bxe4 {[%clk 0:03:01.2]}
23... Rxe4+ {[%clk 0:03:47.5]} 24. Kf3 {[%clk 0:03:00.8]} 24... Rd4 {[%clk
0:03:44.5]} 25. Kg2 {[%clk 0:02:51.9]} 25... Rxg4+ {[%clk 0:03:39.6]} 26. Kh3
{[%clk 0:02:48.7]} 26... Qh4# {[%clk 0:03:38.2]} 0-1

[Event "Live Chess"]
[Site "Chess.com"]
[Date "2023.05.21"]
[Round "-"]
[White "tpm07"]
[Black "Conradical12"]
[Result "1-0"]
[WhiteElo "1952"]
[BlackElo "1633"]
[TimeControl "300"]
[EndTime "20:13:01 PDT"]
[Termination "tpm07 won by resignation"]

1. e4 {[%clk 0:04:57]} 1... e5 {[%clk 0:04:59]} 2. Nf3 {[%clk 0:04:54.9]} 2...
Nc6 {[%clk 0:04:58.3]} 3. Bb5 {[%clk 0:04:52.8]} 3... Nf6 {[%clk 0:04:57.7]} 4.
d3 {[%clk 0:04:50.4]} 4... Bc5 {[%clk 0:04:56.7]} 5. Bxc6 {[%clk 0:04:49.4]}
5... dxc6 {[%clk 0:04:55.2]} 6. Nbd2 {[%clk 0:04:48.3]} 6... Bg4 {[%clk
0:04:52.7]} 7. h3 {[%clk 0:04:42.8]} 7... Bh5 {[%clk 0:04:50.6]} 8. Nf1 {[%clk
0:04:42.3]} 8... O-O {[%clk 0:04:48.6]} 9. Ng3 {[%clk 0:04:41.6]} 9... Bg6
{[%clk 0:04:44.4]} 10. O-O {[%clk 0:04:38.2]} 10... Nh5 {[%clk 0:04:42.7]} 11.
Nf5 {[%clk 0:04:25.9]} 11... Bxf5 {[%clk 0:04:40.2]} 12. exf5 {[%clk 0:04:25.8]}
12... Qf6 {[%clk 0:04:29.7]} 13. g4 {[%clk 0:03:54.4]} 13... Ng3 {[%clk
0:04:10.9]} 14. Re1 {[%clk 0:03:46.8]} 14... Rae8 {[%clk 0:03:59]} 15. Kg2
{[%clk 0:03:42.5]} 15... g6 {[%clk 0:03:52.5]} 16. Bg5 {[%clk 0:03:09.5]} 16...
Qd6 {[%clk 0:03:43.6]} 17. fxg3 {[%clk 0:03:01.7]} 17... f6 {[%clk 0:03:39.2]}
18. Bh6 {[%clk 0:02:56.3]} 18... Rf7 {[%clk 0:03:36]} 19. fxg6 {[%clk
0:02:48.5]} 19... hxg6 {[%clk 0:03:33.3]} 20. Be3 {[%clk 0:02:45.8]} 20... Bxe3
{[%clk 0:03:29.9]} 21. Rxe3 {[%clk 0:02:43.9]} 21... f5 {[%clk 0:03:28.9]} 22.
Ng5 {[%clk 0:02:35]} 22... Qd5+ {[%clk 0:03:13.4]} 23. Kh2 {[%clk 0:02:19.5]}
23... f4 {[%clk 0:03:07.7]} 24. Re4 {[%clk 0:02:08.6]} 24... fxg3+ {[%clk
0:03:04.7]} 25. Kxg3 {[%clk 0:02:06.4]} 25... Rf4 {[%clk 0:03:03]} 26. Qe2
{[%clk 0:01:42.1]} 26... Kg7 {[%clk 0:02:13.6]} 27. Rf1 {[%clk 0:01:31.9]} 27...
Rxf1 {[%clk 0:02:09]} 28. Qxf1 {[%clk 0:01:28.7]} 28... Kh6 {[%clk 0:02:08.9]}
29. Qf7 {[%clk 0:01:16.8]} 29... Kxg5 {[%clk 0:02:04.9]} 30. Qxe8 {[%clk
0:01:00.1]} 30... Qc5 {[%clk 0:01:56]} 31. Rxe5+ {[%clk 0:00:56.5]} 1-0

[Event "Live Chess"]
[Site "Chess.com"]
[Date "2023.05.21"]
[Round "-"]
[White "Ian-Morley"]
[Black "LutherSullivan"]
[Result "0-1"]
[WhiteElo "952"]
[BlackElo "2197"]
[TimeControl "300"]
[EndTime "20:13:37 PDT"]
[Termination "LutherSullivan won by resignation"]

1. e4 {[%clk 0:04:57]} 1... e6 {[%clk 0:04:56.5]} 2. Nf3 {[%clk 0:04:47.9]} 2...
d5 {[%clk 0:04:54.6]} 3. exd5 {[%clk 0:04:45.4]} 3... exd5 {[%clk 0:04:52.2]} 4.
Qe2+ {[%clk 0:04:44.6]} 4... Qe7 {[%clk 0:04:50]} 5. Qxe7+ {[%clk 0:04:40.3]}
5... Bxe7 {[%clk 0:04:47.9]} 6. Nc3 {[%clk 0:04:39]} 6... c6 {[%clk 0:04:46.5]}
7. d4 {[%clk 0:04:32]} 7... Nf6 {[%clk 0:04:45.4]} 8. Bf4 {[%clk 0:04:28]} 8...
O-O {[%clk 0:04:43.8]} 9. Bd3 {[%clk 0:04:24.8]} 9... Re8 {[%clk 0:04:42.1]} 10.
O-O-O {[%clk 0:04:16.8]} 10... Bg4 {[%clk 0:04:36.3]} 11. h3 {[%clk 0:04:13.4]}
11... Bxf3 {[%clk 0:04:31]} 12. gxf3 {[%clk 0:04:11.2]} 12... Nbd7 {[%clk
0:04:30.5]} 13. Rhe1 {[%clk 0:04:09.1]} 13... Nf8 {[%clk 0:04:29.2]} 14. Bg5
{[%clk 0:04:06.4]} 14... Ne6 {[%clk 0:04:27.1]} 15. Bxf6 {[%clk 0:04:04.2]}
15... Bxf6 {[%clk 0:04:26.6]} 16. Ne2 {[%clk 0:03:58.2]} 16... Nxd4 {[%clk
0:04:25.4]} 17. Nxd4 {[%clk 0:03:57]} 17... Bxd4 {[%clk 0:04:25]} 18. Rxe8+
{[%clk 0:03:54.2]} 18... Rxe8 {[%clk 0:04:24.2]} 19. c3 {[%clk 0:03:51]} 19...
Bxf2 {[%clk 0:04:22.9]} 20. Rd2 {[%clk 0:03:46.7]} 20... Be3 {[%clk 0:04:21.9]}
21. Kc2 {[%clk 0:03:44.4]} 21... Bxd2 {[%clk 0:04:21.4]} 22. Kxd2 {[%clk
0:03:42.8]} 22... Re5 {[%clk 0:04:20.9]} 23. f4 {[%clk 0:03:35.1]} 23... Rh5
{[%clk 0:04:19.6]} 24. Bf1 {[%clk 0:03:31.8]} 24... f6 {[%clk 0:04:18.4]} 25.
Ke3 {[%clk 0:03:29.8]} 25... g5 {[%clk 0:04:17.4]} 26. Kf3 {[%clk 0:03:23.6]}
26... Rh4 {[%clk 0:04:14.8]} 27. fxg5 {[%clk 0:03:21.6]} 27... fxg5 {[%clk
0:04:14.3]} 28. Kg3 {[%clk 0:03:19.9]} 28... Kg7 {[%clk 0:04:12.2]} 0-1

[Event "Live Chess"]
[Site "Chess.com"]
[Date "2023.05.21"]
[Round "-"]
[White "Conradical12"]
[Black "ClassyChameleon"]
[Result "1-0"]
[WhiteElo "1634"]
[BlackElo "1076"]
[TimeControl "300"]
[EndTime "20:14:40 PDT"]
[Termination "Conradical12 won by checkmate"]

1. e4 {[%clk 0:04:57.2]} 1... e5 {[%clk 0:04:57.8]} 2. Nf3 {[%clk 0:04:55.6]}
2... Nc6 {[%clk 0:04:56]} 3. Bc4 {[%clk 0:04:55.2]} 3... Nf6 {[%clk 0:04:55.4]}
4. d3 {[%clk 0:04:54.7]} 4... h6 {[%clk 0:04:54.2]} 5. c3 {[%clk 0:04:54.3]}
5... d5 {[%clk 0:04:50.2]} 6. exd5 {[%clk 0:04:52.6]} 6... Nxd5 {[%clk
0:04:49.9]} 7. O-O {[%clk 0:04:51.8]} 7... Nf4 {[%clk 0:04:42]} 8. Bxf4 {[%clk
0:04:48.7]} 8... exf4 {[%clk 0:04:41.1]} 9. Re1+ {[%clk 0:04:48.3]} 9... Be7
{[%clk 0:04:39.8]} 10. d4 {[%clk 0:04:47.7]} 10... O-O {[%clk 0:04:37.4]} 11.
Qe2 {[%clk 0:04:44.6]} 11... a6 {[%clk 0:04:30.2]} 12. d5 {[%clk 0:04:43]} 12...
Nd4 {[%clk 0:04:10.7]} 13. Nxd4 {[%clk 0:04:40.5]} 13... Bd6 {[%clk 0:04:08.7]}
14. Bd3 {[%clk 0:04:35.5]} 14... b5 {[%clk 0:04:02.8]} 15. Qe4 {[%clk
0:04:32.4]} 15... Bb7 {[%clk 0:03:58.7]} 16. Qh7# {[%clk 0:04:30.4]} 1-0